bitfinex-derivatives/quotes_BTCF0:USTF0_20220103
["timestamp","ask_amount","ask_price","bid_price","bid_amount"]
[1641200407211,0.36164459,46985.0,46981.0,0.14033567]
[1641200407624,0.36164459,46985.0,46982.0,0.194]
[1641200408928,0.36164459,46985.0,46981.0,0.14033567]
[1641200409628,0.36164459,46985.0,46981.0,0.33533567]
[1641200410027,0.36164459,46985.0,46982.0,0.1207123]
[1641200410428,0.36164459,46985.0,46981.0,0.33533567]
[1641200410827,0.36164459,46985.0,46982.0,0.12071268]
[1641200411628,0.36164459,46985.0,46982.0,0.31671268]
[1641200412031,0.36164459,46986.0,46983.0,0.12071268]
[1641200412431,0.36164459,46986.0,46982.0,0.196]
[1641200412831,0.36164459,46986.0,46981.0,0.14033567]
[1641200413633,0.36164459,46986.0,46982.0,0.12071126]
[1641200413833,0.36164459,46985.0,46982.0,0.12071126]
[1641200414636,0.36164459,46985.0,46984.0,0.02128428]
[1641200415036,0.36161539,46987.0,46984.0,0.14199554]
[1641200415237,0.84383739,46990.0,46986.0,0.2012811]
[1641200415438,0.84383739,46990.0,46989.0,0.18]
[1641200415636,0.84383739,46990.0,46989.0,0.27479]
[1641200416235,0.84383739,46990.0,46989.0,0.39548631]
[1641200416438,0.16033567,46995.0,46989.0,0.39548631]
[1641200416439,1.00417306,46995.0,46989.0,0.39548631]
[1641200416635,1.00417306,46995.0,46989.0,0.21548631]
[1641200416836,1.00417306,46995.0,46989.0,0.09479]
[1641200417338,0.16033567,46995.0,46989.0,0.09479]
[1641200417539,0.09053226,46994.0,46991.0,0.84320144]
[1641200417737,0.09053226,46994.0,46993.0,0.60249796]
[1641200419537,0.09053226,46994.0,46993.0,0.78449796]
[1641200420741,0.09053226,46994.0,46993.0,0.182]
[1641200420940,0.09053226,46994.0,46992.0,0.60249796]
[1641200421540,0.09053226,46994.0,46993.0,0.60249796]
[1641200422444,0.09053226,46994.0,46993.0,0.62377719]
[1641200422843,0.09053226,46994.0,46993.0,0.80377719]
[1641200423644,0.09053226,46994.0,46993.0,0.98477719]
[1641200423945,0.09053226,46994.0,46993.0,0.80477719]
[1641200424145,0.09053226,46994.0,46993.0,0.98477719]
[1641200425446,0.02,46995.0,46993.0,0.99457119]
[1641200425646,0.9655,47011.0,46994.0,0.001]
[1641200425845,1.44628594,47005.0,47000.0,0.18]
[1641200426047,1.44628594,47005.0,47000.0,0.25932]
[1641200426247,1.44628594,47005.0,47000.0,0.269114]
[1641200427147,0.4506764,47011.0,47000.0,0.269114]
[1641200427447,0.4506764,47011.0,47000.0,0.40944967]
[1641200427648,0.14033567,47015.0,47000.0,0.59744967]
[1641200428847,0.14033567,47015.0,47000.0,0.40944967]
[1641200429049,0.14033567,47015.0,47007.0,0.02127303]
[1641200429348,0.14033567,47015.0,47008.0,0.009794]
[1641200429948,0.14033567,47015.0,47009.0,0.23761722]
[1641200430348,0.14033567,47015.0,47014.0,0.06]
[1641200430552,0.14033567,47020.0,47014.0,0.30595247]
[1641200430752,0.14033567,47020.0,47017.0,0.18]
[1641200431150,0.0319,47029.0,47017.0,0.18]
[1641200431358,1.55521615,47037.0,47025.0,0.32033567]
[1641200431571,1.55521615,47037.0,47036.0,0.18]
[1641200431754,1.55521615,47037.0,47036.0,0.29878742]
[1641200431952,0.91490975,47037.0,47036.0,1.47310099]
[1641200432152,0.02,47045.0,47036.0,1.80234399]
[1641200432352,0.02,47045.0,47044.0,0.18]
[1641200432651,0.02,47045.0,47044.0,0.190794]
[1641200432851,0.02,47045.0,47044.0,0.189794]
[1641200433053,0.02,47045.0,47044.0,0.010794]
[1641200433451,0.31977347,47045.0,47044.0,0.43080101]
[1641200433653,0.31977347,47045.0,47044.0,0.61880101]
[1641200434253,0.31977347,47045.0,47044.0,0.79880101]
[1641200434651,0.31977347,47045.0,47044.0,0.82005389]
[1641200434950,0.18,47061.0,47044.0,0.7103284]
[1641200435152,0.18,47061.0,47048.0,0.18]
[1641200435357,0.18,47061.0,47055.0,0.14033567]
[1641200436457,1.93199583,47068.0,47055.0,0.14033567]
[1641200436458,0.18,47058.0,47055.0,0.14033567]
[1641200437055,0.18,47061.0,47055.0,0.14033567]
[1641200437458,0.18,47057.0,47055.0,0.14033567]
[1641200437659,0.18,47057.0,47055.0,0.30833567]
[1641200439060,0.18,47057.0,47055.0,0.14033567]
[1641200439658,0.18,47057.0,47055.0,0.30533567]
[1641200439859,0.18,47061.0,47055.0,0.30533567]
[1641200440060,0.18,47061.0,47055.0,0.38074567]
[1641200441062,0.18,47061.0,47055.0,0.21574567]
[1641200441760,0.18,47061.0,47055.0,0.39474567]
[1641200443069,0.18,47061.0,47055.0,0.21574567]
[1641200443671,0.18,47061.0,47055.0,0.39474567]
[1641200444573,0.32033567,47064.0,47055.0,0.39474567]
[1641200445073,0.32033567,47064.0,47055.0,0.21574567]
[1641200445379,0.14033567,47068.0,47055.0,0.21574567]
[1641200445582,1.68548643,47071.0,47067.0,0.20124334]
[1641200445777,1.42638643,47071.0,47070.0,0.18]
[1641200445977,1.41288643,47071.0,47070.0,0.18]
[1641200446175,1.40678643,47071.0,47070.0,0.27188411]
[1641200446376,1.36388643,47071.0,47070.0,0.27188411]
[1641200446676,0.46707971,47080.0,47070.0,0.08521211]
[1641200446875,0.46707971,47080.0,47070.0,0.26521211]
[1641200447077,0.46707971,47080.0,47070.0,0.08521211]
[1641200447278,0.18,47079.0,47070.0,0.08521211]
[1641200447577,0.14033567,47089.0,47074.0,0.14033567]
[1641200447777,0.18,47075.0,47074.0,0.14033567]
[1641200447977,0.18,47078.0,47074.0,0.14033567]
[1641200449483,0.18,47078.0,47074.0,0.28067134]
[1641200449686,0.18,47078.0,47074.0,0.45267134]
[1641200450187,0.18,47083.0,47075.0,0.009794]
[1641200450387,0.18,47080.0,47075.0,0.009794]
[1641200450589,0.18,47083.0,47075.0,0.009794]
[1641200451491,0.18,47080.0,47079.0,0.14033567]
[1641200451688,0.14033567,47089.0,47079.0,0.14033567]
[1641200451889,0.18,47083.0,47079.0,0.14033567]
[1641200456497,0.18,47080.0,47079.0,0.14033567]
[1641200467310,0.26772281,47083.0,47079.0,0.14033567]
[1641200467512,0.18,47080.0,47079.0,0.14033567]
[1641200471820,0.18,47080.0,47079.0,0.49734593]
[1641200473221,0.18,47080.0,47079.0,0.14033567]
[1641200475145,0.18,47080.0,47079.0,0.49486287]
[1641200475745,0.18,47080.0,47079.0,0.73535277]
[1641200477146,0.18,47080.0,47079.0,0.82169277]
[1641200479548,0.18,47080.0,47079.0,0.22667567]
[1641200479851,1.43013323,47084.0,47079.0,0.22667567]
[1641200480851,0.18,47081.0,47079.0,0.22667567]
[1641200481048,1.43013323,47084.0,47079.0,0.22667567]
[1641200481251,0.18,47085.0,47082.0,0.35407532]
[1641200481949,0.18,47085.0,47082.0,0.48007532]
[1641200482151,1.43013323,47087.0,47082.0,0.48007532]
[1641200482353,1.43013323,47087.0,47083.0,0.35407532]
[1641200483250,1.43013323,47088.0,47084.0,0.35407532]
[1641200483652,0.18,47086.0,47084.0,0.35407532]
[1641200483852,0.18,47086.0,47085.0,0.14033567]
[1641200484252,1.61013323,47089.0,47085.0,0.49441099]
[1641200484452,0.18,47086.0,47085.0,0.49441099]
[1641200485353,0.18,47086.0,47085.0,0.14033567]
[1641200485754,1.43013323,47088.0,47085.0,0.14033567]
[1641200485956,0.42470894,47092.0,47085.0,0.14033567]
[1641200487356,0.18,47093.0,47085.0,0.14033567]
[1641200487755,0.18,47090.0,47085.0,0.14033567]
[1641200488357,0.18,47086.0,47085.0,0.14033567]
[1641200488855,0.18,47090.0,47085.0,0.14033567]
[1641200490056,0.42229744,47095.0,47085.0,0.14033567]
[1641200490457,0.18,47094.0,47085.0,0.14033567]
[1641200490656,0.18,47088.0,47085.0,0.14033567]
[1641200491558,0.18,47091.0,47085.0,0.14033567]
[1641200491757,0.12,47094.0,47085.0,0.14033567]
[1641200491958,0.18,47091.0,47085.0,0.14033567]
[1641200492760,0.18,47094.0,47085.0,0.14033567]
[1641200492960,0.42229744,47095.0,47085.0,0.14033567]
[1641200493159,0.26568453,47090.0,47085.0,0.14033567]
[1641200493563,0.44568453,47090.0,47085.0,0.14033567]
[1641200493961,0.18,47090.0,47085.0,0.14033567]
[1641200495260,0.06859513,47093.0,47085.0,0.14033567]
[1641200495461,0.24859513,47093.0,47085.0,0.14033567]
[1641200496062,0.18,47086.0,47085.0,0.14033567]
[1641200497866,0.24197,47086.0,47079.0,0.14033567]
[1641200498065,0.18,47080.0,47079.0,0.14033567]
[1641200501069,0.181,47080.0,47079.0,0.14033567]
[1641200501271,0.26887,47080.0,47069.0,1.34707532]
[1641200501469,0.26887,47080.0,47069.0,0.35407532]
[1641200501871,0.14033567,47076.0,47069.0,0.53707532]
[1641200502269,0.32033567,47076.0,47069.0,0.53707532]
[1641200502474,1.44632175,47072.0,47069.0,0.183]
[1641200503169,1.44632175,47072.0,47067.0,0.50420499]
[1641200503369,1.44632175,47071.0,47067.0,0.50420499]
[1641200503770,1.44632175,47071.0,47067.0,0.69220499]
[1641200505074,1.44632175,47071.0,47067.0,0.15012967]
[1641200505472,1.44632175,47071.0,47067.0,0.14033567]
[1641200505872,1.44632175,47071.0,47067.0,0.32733567]
[1641200506674,1.44632175,47070.0,47067.0,0.32733567]
[1641200507274,1.44632175,47073.0,47067.0,0.14033567]
[1641200507974,1.61532175,47073.0,47067.0,0.31933567]
[1641200508775,0.169,47073.0,47067.0,0.31933567]
[1641200509776,0.171,47073.0,47067.0,0.31933567]
[1641200511078,1.44632175,47075.0,47067.0,0.14033567]
[1641200511777,1.60432175,47075.0,47067.0,0.31933567]
[1641200513278,1.44632175,47075.0,47067.0,0.14033567]
[1641200513978,1.61532175,47075.0,47067.0,0.32033567]
[1641200514380,1.44632175,47074.0,47067.0,0.32033567]
[1641200515079,1.44632175,47074.0,47067.0,0.14033567]
[1641200515879,1.61532175,47074.0,47067.0,0.32033567]
[1641200516295,0.18,47072.0,47067.0,0.32033567]
[1641200516493,1.44632175,47073.0,47067.0,0.32033567]
[1641200517199,1.44632175,47073.0,47067.0,0.14033567]
[1641200517394,0.18,47072.0,47067.0,0.14033567]
[1641200517795,0.18,47072.0,47067.0,0.31933567]
[1641200517996,1.61132175,47073.0,47067.0,0.31933567]
[1641200518200,0.18,47072.0,47067.0,0.31933567]
[1641200518897,0.14820721,47071.0,47067.0,0.31933567]
[1641200519298,0.14820721,47071.0,47067.0,0.14033567]
[1641200519898,0.32620721,47071.0,47067.0,0.31333567]
[1641200521899,0.33420721,47071.0,47067.0,0.30633567]
[1641200523206,0.14820721,47071.0,47067.0,0.14033567]
[1641200523403,0.14970356,47071.0,47067.0,0.14033567]
[1641200523802,0.33670356,47071.0,47067.0,0.30433567]
[1641200525204,0.14970356,47071.0,47067.0,0.14033567]
[1641200525406,1.44632175,47068.0,47067.0,0.14033567]
[1641200525809,1.44632175,47068.0,47067.0,0.30933567]
[1641200526206,1.44632175,47070.0,47067.0,0.30933567]
[1641200526408,1.44632175,47070.0,47067.0,0.38535567]
[1641200527211,1.44632175,47070.0,47067.0,0.57043099]
[1641200527810,1.44632175,47070.0,47067.0,0.76043099]
[1641200529211,1.44632175,47070.0,47067.0,0.57043099]
[1641200529411,1.44632175,47071.0,47067.0,0.57043099]
[1641200529811,1.44632175,47071.0,47067.0,0.76043099]
[1641200530614,1.44632175,47070.0,47067.0,0.76043099]
[1641200531213,1.44632175,47070.0,47067.0,0.57043099]
[1641200532015,1.44632175,47070.0,47067.0,0.76043099]
[1641200532715,1.44632175,47070.0,47067.0,0.40635567]
[1641200532917,1.44632175,47070.0,47067.0,0.33033567]
[1641200533215,1.44632175,47070.0,47067.0,0.14033567]
[1641200533915,1.44632175,47070.0,47067.0,0.33133567]
[1641200534415,1.44632175,47069.0,47067.0,0.33133567]
[1641200535217,1.44632175,47070.0,47067.0,0.14033567]
[1641200536023,1.44632175,47069.0,47067.0,0.33133567]
[1641200537220,1.44632175,47069.0,47067.0,0.14033567]
[1641200538024,1.44632175,47069.0,47067.0,0.33133567]
[1641200538628,1.44632175,47070.0,47067.0,0.33133567]
[1641200539327,1.44632175,47070.0,47067.0,0.68541099]
[1641200539528,1.44632175,47070.0,47067.0,0.49441099]
[1641200539929,1.44632175,47070.0,47067.0,0.68441099]
[1641200540228,1.44632175,47071.0,47067.0,0.33033567]
[1641200541231,1.44632175,47071.0,47067.0,0.14033567]
[1641200541627,1.44632175,47072.0,47067.0,0.14033567]
[1641200541927,1.44632175,47072.0,47067.0,0.33033567]
[1641200543832,1.44632175,47071.0,47067.0,0.14033567]
[1641200544030,1.44632175,47071.0,47067.0,0.33033567]
[1641200545231,1.44632175,47071.0,47067.0,0.14033567]
[1641200545933,1.60532175,47071.0,47067.0,0.32733567]
[1641200547331,1.44632175,47070.0,47067.0,0.14033567]
[1641200547731,1.44632175,47070.0,47065.0,0.35407532]
[1641200547932,1.59332175,47070.0,47067.0,0.187]
[1641200549234,1.44632175,47070.0,47064.0,0.3753235]
[1641200549835,1.44632175,47070.0,47065.0,0.35407532]
[1641200550655,1.44632175,47069.0,47064.0,0.5653235]
[1641200551251,1.44632175,47069.0,47064.0,0.3753235]
[1641200551952,1.62532175,47069.0,47064.0,0.5553235]
[1641200552152,0.14033567,47067.0,47064.0,0.20124818]
[1641200552752,0.14033567,47067.0,47064.0,0.5553235]
[1641200552753,1.58665742,47067.0,47064.0,0.5553235]
[1641200553352,0.14033567,47067.0,47064.0,0.5553235]
[1641200553953,0.30733567,47067.0,47064.0,0.5573235]
[1641200554954,0.30733567,47067.0,47065.0,0.35407532]
[1641200555957,0.30033567,47067.0,47065.0,0.53407532]
[1641200556558,0.16,47067.0,47065.0,0.53407532]
[1641200557259,0.16,47067.0,47065.0,0.18]
[1641200557460,1.44632175,47071.0,47066.0,0.5950171]
[1641200557760,1.44632175,47071.0,47068.0,0.18]
[1641200557958,1.44632175,47071.0,47069.0,0.02124597]
[1641200558159,1.44632175,47072.0,47069.0,0.02124597]
[1641200559367,1.44632175,47073.0,47070.0,0.3537999]
[1641200560060,1.44632175,47073.0,47070.0,0.5497999]
[1641200561061,1.44632175,47073.0,47070.0,0.196]
[1641200561360,0.14033567,47083.0,47069.0,0.37504587]
[1641200561561,1.36452777,47087.0,47076.0,0.02124262]
[1641200561760,0.21092777,47087.0,47076.0,0.08055262]
[1641200561963,0.161,47083.0,47076.0,0.26055262]
[1641200562360,0.161,47083.0,47082.0,0.14033567]
[1641200563362,0.0311,47090.0,47082.0,0.14033567]
[1641200563964,0.77160821,47089.0,47082.0,0.32233567]
[1641200565368,0.61160821,47089.0,47082.0,0.14033567]
[1641200565967,0.77060821,47089.0,47082.0,0.32233567]
[1641200567367,0.61160821,47089.0,47082.0,0.14033567]
[1641200567868,1.44390599,47087.0,47082.0,0.14033567]
[1641200568069,1.44390599,47087.0,47082.0,0.32233567]
[1641200568968,1.44390599,47086.0,47082.0,0.32233567]
[1641200569470,1.44390599,47086.0,47082.0,0.14033567]
[1641200570171,1.63690599,47086.0,47082.0,0.14033567]
[1641200570671,0.193,47086.0,47082.0,0.14033567]
[1641200571471,1.44390599,47088.0,47082.0,0.14033567]
[1641200571973,1.44390599,47086.0,47082.0,0.14033567]
[1641200573676,1.44390599,47085.0,47082.0,0.14033567]
[1641200575176,1.63890599,47086.0,47082.0,0.14033567]
[1641200575476,1.44390599,47086.0,47082.0,0.14033567]
[1641200576079,1.63590599,47086.0,47082.0,0.14033567]
[1641200577584,1.44390599,47086.0,47082.0,0.14033567]
[1641200577981,1.63590599,47086.0,47082.0,0.14033567]
[1641200579483,1.44390599,47086.0,47082.0,0.14033567]
[1641200579684,0.2844572,47082.0,47067.0,0.3537999]
[1641200579986,0.18,47080.0,47072.0,0.02124434]
[1641200580183,1.69601599,47086.0,47067.0,0.3537999]
[1641200580184,0.18,47079.0,47067.0,0.3537999]
[1641200580788,0.18,47076.0,47068.0,0.14033567]
[1641200580985,0.24781,47076.0,47068.0,0.14033567]
[1641200581185,0.18,47072.0,47067.0,0.3537999]
[1641200581387,0.18,47072.0,47065.0,0.02124743]
[1641200582086,0.343,47072.0,47065.0,0.02124743]
[1641200582687,0.14033567,47069.0,47065.0,0.02124743]
[1641200583988,0.31933567,47069.0,47065.0,0.02124743]
[1641200584389,0.18,47066.0,47057.0,1.3914999]
[1641200584590,0.18,47061.0,47057.0,1.3914999]
[1641200584887,0.18,47061.0,47057.0,0.3537999]
[1641200585287,0.001,47058.0,47057.0,0.3537999]
[1641200586189,0.173,47058.0,47057.0,0.3537999]
[1641200586392,0.173,47058.0,47055.0,0.5950171]
[1641200586691,0.172,47058.0,47056.0,0.5950171]
[1641200586889,0.001,47057.0,47056.0,0.5950171]
[1641200587593,0.001,47057.0,47055.0,0.83302394]
[1641200587791,0.14033567,47062.0,47054.0,0.14033567]
[1641200587991,0.177,47057.0,47055.0,1.19003421]
[1641200589393,0.14033567,47062.0,47056.0,0.02125186]
[1641200589596,0.001,47057.0,47056.0,0.02125186]
[1641200589793,1.44390599,47063.0,47056.0,0.02125186]
[1641200591208,1.44390599,47064.0,47061.0,0.35432941]
[1641200592009,1.62290599,47064.0,47061.0,0.53232941]
[1641200593014,0.179,47064.0,47063.0,0.35432941]
[1641200593211,0.18,47064.0,47063.0,0.35432941]
[1641200593411,0.001,47064.0,47063.0,0.35432941]
[1641200593712,0.001,47064.0,47061.0,0.59054902]
[1641200593713,0.001,47064.0,47062.0,0.35432941]
[1641200593913,1.44390599,47065.0,47062.0,0.35432941]
[1641200594111,0.18,47064.0,47063.0,0.164]
[1641200594311,0.181,47064.0,47063.0,0.164]
[1641200595614,0.001,47064.0,47062.0,0.35432941]
[1641200595812,0.001,47063.0,47062.0,0.35432941]
[1641200596813,0.001,47063.0,47053.0,0.20125312]
[1641200597012,0.18,47064.0,47053.0,0.20125312]
[1641200597215,0.18,47064.0,47057.0,0.18]
[1641200597414,0.14033567,47071.0,47063.0,0.0212487]
[1641200597615,1.44390599,47077.0,47063.0,0.0212487]
[1641200598013,0.166,47069.0,47067.0,0.02124665]
[1641200598216,0.166,47069.0,47067.0,0.10018665]
[1641200598916,0.166,47069.0,47067.0,0.24052232]
[1641200599417,0.14033567,47077.0,47067.0,0.24052232]
[1641200600019,0.68581871,47076.0,47067.0,0.42452232]
[1641200600421,0.176,47076.0,47067.0,0.42452232]
[1641200601020,0.176,47076.0,47074.0,0.02124337]
[1641200601222,0.176,47076.0,47072.0,0.009794]
[1641200601519,0.33448262,47093.0,47073.0,0.18]
[1641200601520,0.93197362,47087.0,47073.0,0.18]
[1641200601719,0.93197362,47087.0,47072.0,0.009794]
[1641200602119,1.54790599,47083.0,47073.0,0.188]
[1641200602721,0.18,47075.0,47073.0,0.188]
[1641200602919,0.07894,47075.0,47073.0,0.188]
[1641200603523,0.07894,47075.0,47067.0,0.14033567]
[1641200603730,0.001,47070.0,47067.0,0.14033567]
[1641200603922,0.07894,47075.0,47067.0,0.14033567]
[1641200604221,0.26094,47075.0,47067.0,0.28833567]
[1641200604420,0.182,47075.0,47067.0,0.28833567]
[1641200604621,0.182,47075.0,47069.0,0.02124584]
[1641200604821,0.32233567,47075.0,47069.0,0.02124584]
[1641200605422,0.14033567,47075.0,47069.0,0.02124584]
[1641200606026,0.31033567,47075.0,47069.0,0.19324584]
[1641200607524,0.14033567,47075.0,47069.0,0.02124584]
[1641200608025,0.28233567,47075.0,47069.0,0.19824584]
[1641200609226,0.28233567,47075.0,47069.0,0.02124584]
[1641200609427,0.14033567,47075.0,47069.0,0.02124584]
[1641200610030,0.24333567,47075.0,47069.0,0.20524584]
[1641200611329,0.24333567,47075.0,47069.0,0.02124584]
[1641200611529,0.14033567,47075.0,47069.0,0.02124584]
[1641200612129,1.44390599,47073.0,47070.0,0.35432941]
[1641200613831,1.44390599,47074.0,47071.0,0.35432941]
[1641200614032,0.11,47073.0,47071.0,0.35432941]
[1641200615535,1.58424166,47075.0,47071.0,0.35432941]
[1641200616136,1.74224166,47075.0,47071.0,0.53432941]
[1641200617534,1.58424166,47075.0,47071.0,0.35432941]
[1641200618134,1.74524166,47075.0,47071.0,0.53332941]
[1641200618536,1.44390599,47074.0,47071.0,0.53332941]
[1641200619135,1.74524166,47075.0,47071.0,0.53332941]
[1641200619538,1.58424166,47075.0,47071.0,0.35432941]
[1641200620137,1.74224166,47075.0,47071.0,0.53432941]
[1641200621441,1.58424166,47075.0,47071.0,0.35432941]
[1641200622136,1.74224166,47075.0,47071.0,0.53432941]
[1641200623540,1.58424166,47075.0,47071.0,0.35432941]
[1641200624040,1.74224166,47075.0,47071.0,0.53432941]
[1641200624743,1.44390599,47074.0,47071.0,0.53432941]
[1641200625544,1.44390599,47075.0,47071.0,0.35432941]
[1641200625947,1.44390599,47075.0,47074.0,0.02124137]
[1641200626146,1.60090599,47075.0,47074.0,0.02124137]
[1641200626549,0.157,47075.0,47074.0,0.02124137]
[1641200627247,0.157,47075.0,47074.0,0.16157704]
[1641200627448,1.44390599,47076.0,47074.0,0.16157704]
[1641200627647,1.44390599,47080.0,47075.0,0.06]
[1641200627847,1.44390599,47080.0,47074.0,0.16157704]
[1641200628048,1.57290599,47080.0,47075.0,0.19]
[1641200628650,1.57290599,47080.0,47077.0,0.352819]
[1641200629449,1.44390599,47080.0,47077.0,0.352819]
[1641200629851,1.44390599,47080.0,47076.0,0.352819]
[1641200630049,1.62490599,47080.0,47077.0,0.168]
[1641200630249,1.62490599,47080.0,47078.0,0.02124178]
[1641200630653,1.62490599,47080.0,47079.0,0.009794]
[1641200630853,1.62490599,47080.0,47079.0,0.03203342]
[1641200631052,1.62490599,47080.0,47079.0,0.03103342]
[1641200631352,1.44390599,47080.0,47079.0,0.35136909]
[1641200631555,1.44390599,47080.0,47079.0,0.17136909]
[1641200631752,1.44390599,47080.0,47079.0,0.35136909]
[1641200631954,1.44390599,47081.0,47079.0,0.35136909]
[1641200632156,1.44390599,47081.0,47079.0,0.36436909]
[1641200632353,1.44390599,47081.0,47080.0,0.18]
[1641200632570,1.44390599,47081.0,47079.0,0.36436909]
[1641200633273,1.44390599,47085.0,47080.0,0.58803167]
[1641200634073,1.58790599,47085.0,47080.0,0.77503167]
[1641200634472,1.58790599,47085.0,47081.0,0.02124041]
[1641200634873,1.44390599,47084.0,47081.0,0.02124041]
[1641200635273,1.44390599,47084.0,47083.0,0.0212388]
[1641200636074,1.58590599,47084.0,47083.0,0.2022388]
[1641200636876,0.142,47084.0,47083.0,0.2022388]
[1641200637083,0.142,47084.0,47083.0,0.181]
[1641200637275,0.142,47084.0,47083.0,0.32133567]
[1641200637477,1.44390599,47085.0,47083.0,0.16157538]
[1641200638077,1.44390599,47084.0,47083.0,0.34157538]
[1641200639478,1.44390599,47084.0,47083.0,0.16157538]
[1641200639779,1.44390599,47085.0,47083.0,0.16157538]
[1641200640178,0.006,47084.0,47083.0,0.32033567]
[1641200641379,0.006,47084.0,47083.0,0.34157312]
[1641200641581,1.44390599,47085.0,47083.0,0.16157312]
[1641200641979,1.44390599,47086.0,47083.0,0.16157312]
[1641200642180,0.139,47085.0,47083.0,0.34657312]
[1641200643481,1.44390599,47085.0,47083.0,0.16157312]
[1641200644181,1.60090599,47085.0,47083.0,0.34757312]
[1641200644383,0.157,47085.0,47083.0,0.69997268]
[1641200646194,0.148,47085.0,47083.0,0.69997268]
[1641200646385,1e-08,47085.0,47084.0,0.009794]
[1641200646785,0.25535155,47098.0,47084.0,0.009794]
[1641200647386,0.25535155,47098.0,47095.0,0.14033567]
[1641200647587,0.021,47096.0,47095.0,0.21997567]
[1641200648188,0.02,47096.0,47095.0,0.40397567]
[1641200649391,0.021,47096.0,47095.0,0.21997567]
[1641200650192,0.021,47096.0,47095.0,0.40497567]
[1641200650391,0.021,47096.0,47095.0,0.4262095]
[1641200650991,0.021,47096.0,47095.0,0.40497567]
[1641200651494,0.021,47096.0,47095.0,0.21997567]
[1641200652197,0.021,47096.0,47095.0,0.40597567]
[1641200652993,1.46663128,47096.0,47095.0,0.40597567]
[1641200654094,0.021,47096.0,47095.0,0.40597567]
[1641200654292,0.021,47096.0,47095.0,0.40297567]
[1641200655499,0.34395318,47096.0,47091.0,0.35185713]
[1641200655697,0.18,47092.0,47091.0,0.35185713]
[1641200655896,0.18,47092.0,47091.0,0.26787484]
[1641200656296,0.09866779,47095.0,47091.0,0.42387484]
[1641200656998,1.061728,47094.0,47091.0,0.42387484]
[1641200657399,0.14033567,47095.0,47091.0,0.42387484]
[1641200657699,0.02,47096.0,47092.0,0.009794]
[1641200657898,0.02,47096.0,47092.0,0.077944]
[1641200658899,1.44565526,47093.0,47092.0,0.077944]
[1641200659398,1.44565526,47093.0,47092.0,0.21827967]
[1641200660199,1.44565526,47093.0,47092.0,0.40048567]
[1641200660599,0.02,47096.0,47092.0,0.40048567]
[1641200661011,0.18,47094.0,47092.0,0.40048567]
[1641200661302,0.18,47093.0,47092.0,0.26015]
[1641200661703,0.16344676,47089.0,47083.0,0.15012967]
[1641200661901,0.18,47087.0,47083.0,0.15012967]
[1641200662103,0.3434568,47087.0,47083.0,0.14033567]
[1641200662305,0.1634568,47087.0,47083.0,0.32833567]
[1641200662503,0.18,47086.0,47083.0,0.32833567]
[1641200662704,0.001,47084.0,47083.0,0.32833567]
[1641200663705,0.1634568,47087.0,47083.0,0.14033567]
[1641200663905,1.44433373,47091.0,47083.0,0.14033567]
[1641200664105,0.18,47088.0,47083.0,0.14033567]
[1641200664405,0.18,47088.0,47083.0,0.32933567]
[1641200664605,0.18,47091.0,47083.0,0.32933567]
[1641200665005,0.001,47086.0,47083.0,0.32933567]
[1641200665205,0.001,47084.0,47083.0,0.32933567]
[1641200665606,0.001,47084.0,47083.0,0.14033567]
[1641200665807,1.44433373,47092.0,47083.0,0.14033567]
[1641200666219,1.44433373,47092.0,47083.0,0.35757532]
[1641200666620,0.181,47087.0,47083.0,0.35757532]
[1641200666819,0.001,47084.0,47083.0,0.35757532]
[1641200667423,0.001,47084.0,47083.0,0.16157532]
[1641200668221,0.08796378,47090.0,47083.0,0.35757532]
[1641200668421,1.44433373,47094.0,47083.0,0.35757532]
[1641200668624,1.44433373,47093.0,47083.0,0.35757532]
[1641200669022,0.18,47092.0,47083.0,0.35757532]
[1641200669421,1.44433373,47093.0,47083.0,0.35757532]
[1641200669622,0.18,47089.0,47083.0,0.16157532]
[1641200670226,0.18,47089.0,47083.0,0.35757532]
[1641200670624,0.24370917,47089.0,47083.0,0.35757532]
[1641200671427,0.18,47085.0,47083.0,0.33633567]
[1641200671625,0.18,47085.0,47083.0,0.14033567]
[1641200672225,0.18,47085.0,47083.0,0.33633567]
[1641200673028,0.06371131,47088.0,47083.0,0.33633567]
[1641200673225,0.18,47085.0,47083.0,0.33633567]
[1641200673627,0.18,47085.0,47083.0,0.14033567]
[1641200673828,0.06371131,47088.0,47083.0,0.14033567]
[1641200674225,0.06371131,47088.0,47083.0,0.33333567]
[1641200674426,0.18,47088.0,47083.0,0.33333567]
[1641200674626,0.06370985,47089.0,47083.0,0.33333567]
[1641200675327,1.44433373,47091.0,47083.0,0.33333567]
[1641200675727,1.44433373,47091.0,47083.0,0.14033567]
[1641200675928,0.18,47089.0,47083.0,0.14033567]
[1641200676329,0.18,47087.0,47083.0,0.33333567]
[1641200676531,0.08297651,47085.0,47083.0,0.33333567]
[1641200676729,0.18,47084.0,47083.0,0.33333567]
[1641200677328,0.08297651,47085.0,47083.0,0.33333567]
[1641200677532,0.08297651,47085.0,47083.0,0.14033567]
[1641200678328,0.08297651,47085.0,47083.0,0.32533567]
[1641200679629,0.08297651,47085.0,47083.0,0.14033567]
[1641200680232,0.08297651,47085.0,47083.0,0.32533567]
[1641200681530,1.44433373,47090.0,47084.0,0.02123838]
[1641200681729,0.10096204,47088.0,47083.0,0.14033567]
[1641200682230,0.10096204,47088.0,47083.0,0.33433567]
[1641200683633,0.10096204,47088.0,47083.0,0.14033567]
[1641200684332,0.09497329,47084.0,47083.0,0.33333567]
[1641200685835,0.09497329,47084.0,47083.0,0.14033567]
[1641200686134,1.62433373,47092.0,47083.0,0.14033567]
[1641200686334,1.62433373,47092.0,47083.0,0.33333567]
[1641200686534,0.1224618,47088.0,47083.0,0.33333567]
[1641200687736,0.1224618,47088.0,47083.0,0.14033567]
[1641200688337,0.1224618,47088.0,47083.0,0.33433567]
[1641200689338,1.44433373,47086.0,47083.0,0.33433567]
[1641200689737,1.44433373,47086.0,47083.0,0.14033567]
[1641200690240,0.1224618,47088.0,47083.0,0.14033567]
[1641200690439,0.1224618,47088.0,47087.0,0.02123785]
[1641200690638,0.1224618,47088.0,47086.0,0.02123812]
[1641200691642,0.1224618,47088.0,47083.0,0.14033567]
[1641200692443,0.1224618,47088.0,47083.0,0.33733567]
[1641200693548,0.1224618,47088.0,47083.0,0.14033567]
[1641200694447,0.1224618,47088.0,47083.0,0.33733567]
[1641200695648,0.1224618,47088.0,47083.0,0.14033567]
[1641200696350,0.1224618,47088.0,47083.0,0.33733567]